[Event "Titled Tuesday Blitz April 18 Early 2023"]
[White "Gonzalez, Francisco Silva"]
[Black "Antonova, Nadezhda"]
[WhiteFideId "1512285"]
[BlackFideId "14700182"]
[WhiteElo "2074"]
[BlackElo "1765"]
[Result "0-1"]
[Round "04"]
[TimeControl "180+2"]
[Date "2023.04.18"]
[WhiteClock "0:00:04"]
[BlackClock "0:00:03"]

1. d4 {[%clk 0:03:00]}  Nf6 {[%clk 0:02:59]} 2. c4 {[%clk 0:03:00]}  g6 {[%clk 0:03:00]} 3. Nc3 {[%clk 0:03:00]}  Bg7 {[%clk 0:03:00]} 4. e4 {[%clk 0:03:01]}  d6 {[%clk 0:03:01]} 5. f3 {[%clk 0:03:01]}  O-O {[%clk 0:03:01]} 6. Be3 {[%clk 0:03:02]}  c5 {[%clk 0:03:02]} 7. Nge2 {[%clk 0:03:02]}  Nc6 {[%clk 0:03:01]} 8. d5 {[%clk 0:03:02]}  Ne5 {[%clk 0:03:01]} 9. Ng3 {[%clk 0:03:02]}  h5 {[%clk 0:03:00]} 10. Be2 {[%clk 0:03:01]}  h4 {[%clk 0:03:00]} 11. Nf1 {[%clk 0:03:02]}  a6 {[%clk 0:02:44]} 12. a4 {[%clk 0:03:01]}  e6 {[%clk 0:02:41]} 13. Nd2 {[%clk 0:02:58]}  exd5 {[%clk 0:02:40]} 14. cxd5 {[%clk 0:02:58]}  h3 {[%clk 0:02:33]} 15. g3 {[%clk 0:02:58]}  Bd7 {[%clk 0:02:26]} 16. O-O {[%clk 0:02:57]}  Nh7 {[%clk 0:02:18]} 17. f4 {[%clk 0:02:56]}  Nc6 {[%clk 0:02:04]} 18. dxc6 {[%clk 0:02:53]}  Bxc6 {[%clk 0:02:05]} 19. Bg4 {[%clk 0:02:47]}  Qe7 {[%clk 0:02:03]} 20. Bxh3 {[%clk 0:02:46]}  f5 {[%clk 0:02:03]} 21. Re1 {[%clk 0:02:30]}  fxe4 {[%clk 0:01:59]} 22. Nc4 {[%clk 0:02:24]}  Rad8 {[%clk 0:01:48]} 23. Nd5 {[%clk 0:02:23]}  Qf7 {[%clk 0:01:42]} 24. Ncb6 {[%clk 0:02:20]}  Bxb2 {[%clk 0:01:38]} 25. Qd2 {[%clk 0:02:14]}  Bxa1 {[%clk 0:01:36]} 26. Rxa1 {[%clk 0:02:14]}  Nf6 {[%clk 0:01:30]} 27. Rd1 {[%clk 0:02:12]}  Nxd5 {[%clk 0:01:23]} 28. Nxd5 {[%clk 0:02:11]}  Bxa4 {[%clk 0:01:23]} 29. f5 {[%clk 0:02:07]}  Bxd1 {[%clk 0:01:19]} 30. Qxd1 {[%clk 0:02:07]}  gxf5 {[%clk 0:01:08]} 31. Bxf5 {[%clk 0:02:07]}  Rde8 {[%clk 0:00:57]} 32. Qg4+ {[%clk 0:02:03]}  Qg7 {[%clk 0:00:55]} 33. Be6+ {[%clk 0:02:02]}  Kh8 {[%clk 0:00:51]} 34. Qh5+ {[%clk 0:02:01]}  Qh7 {[%clk 0:00:49]} 35. Qg4 {[%clk 0:01:43]}  Qg7 {[%clk 0:00:47]} 36. Qh3+ {[%clk 0:01:26]}  Qh7 {[%clk 0:00:47]} 37. Bh6 {[%clk 0:01:26]}  b5 {[%clk 0:00:32]} 38. Bd7 {[%clk 0:01:00]}  Rd8 {[%clk 0:00:12]} 39. Be6 {[%clk 0:00:38]}  Rde8 {[%clk 0:00:12]} 40. Bd7 {[%clk 0:00:37]}  Rd8 {[%clk 0:00:12]} 41. Bg4 {[%clk 0:00:29]}  Rde8 {[%clk 0:00:10]} 42. Bxf8 {[%clk 0:00:16]}  Qxh3 {[%clk 0:00:10]} 43. Bxh3 {[%clk 0:00:16]}  Rxf8 {[%clk 0:00:11]} 44. Be6 {[%clk 0:00:16]}  b4 {[%clk 0:00:10]} 45. Nf4 {[%clk 0:00:15]}  Kg7 {[%clk 0:00:09]} 46. Bd5 {[%clk 0:00:15]}  Re8 {[%clk 0:00:09]} 47. Kf1 {[%clk 0:00:15]}  Kf6 {[%clk 0:00:09]} 48. Ke2 {[%clk 0:00:15]}  Ke5 {[%clk 0:00:09]} 49. Ke3 {[%clk 0:00:16]}  a5 {[%clk 0:00:08]} 50. Bc4 {[%clk 0:00:16]}  a4 {[%clk 0:00:08]} 51. h4 {[%clk 0:00:16]}  b3 {[%clk 0:00:07]} 52. g4 {[%clk 0:00:16]}  b2 {[%clk 0:00:07]} 53. g5 {[%clk 0:00:16]}  b1=Q {[%clk 0:00:06]} 54. Ng6+ {[%clk 0:00:16]}  Kf5 {[%clk 0:00:02]} 55. h5 {[%clk 0:00:12]}  Qe1+ {[%clk 0:00:02]} 56. Be2 {[%clk 0:00:10]}  Qc1+ {[%clk 0:00:02]} 57. Kf2 {[%clk 0:00:09]}  Kxg5 {[%clk 0:00:01]} 58. Kg3 {[%clk 0:00:07]}  Qe3+ {[%clk 0:00:01]} 59. Bf3 {[%clk 0:00:06]}  Qxf3+ {[%clk 0:00:01]} 60. Kh2 {[%clk 0:00:06]}  Qxh5+ {[%clk 0:00:02]} 61. Nh4 {[%clk 0:00:06]}  Qxh4+ {[%clk 0:00:02]} 62. Kg2 {[%clk 0:00:06]}  Qg4+ {[%clk 0:00:02]} 63. Kf1 {[%clk 0:00:05]}  Qf3+ {[%clk 0:00:02]} 64. Ke1 {[%clk 0:00:05]}  Qg2 {[%clk 0:00:03]} 65. Kd1 {[%clk 0:00:04]}  Rh8 {[%clk 0:00:03]} 0-1


[Site "https://www.chess.com"]

[Event "Titled Tuesday Blitz April 18 Early 2023"]
[White "Sargissyan, Sargis"]
[Black "Kuchava, Ana"]
[WhiteFideId "13303210"]
[BlackFideId "13605348"]
[WhiteElo "2109"]
[BlackElo "2001"]
[Result "1-0"]
[Round "04"]
[TimeControl "180+2"]
[Date "2023.04.18"]
[WhiteClock "0:00:58"]
[BlackClock "0:01:52"]

1. e4 {[%clk 0:03:00]}  c5 {[%clk 0:02:55]} 2. Nf3 {[%clk 0:03:00]}  d6 {[%clk 0:02:54]} 3. d4 {[%clk 0:03:01]}  cxd4 {[%clk 0:02:53]} 4. Nxd4 {[%clk 0:03:02]}  Nf6 {[%clk 0:02:53]} 5. Nc3 {[%clk 0:03:02]}  Nc6 {[%clk 0:02:54]} 6. Bg5 {[%clk 0:03:01]}  Qb6 {[%clk 0:02:52]} 7. Nb3 {[%clk 0:03:01]}  e6 {[%clk 0:02:49]} 8. Qe2 {[%clk 0:02:37]}  Be7 {[%clk 0:02:40]} 9. O-O-O {[%clk 0:02:38]}  a6 {[%clk 0:02:37]} 10. f4 {[%clk 0:02:35]}  O-O {[%clk 0:02:31]} 11. g4 {[%clk 0:02:29]}  h6 {[%clk 0:02:08]} 12. Bh4 {[%clk 0:01:31]}  Nxe4 {[%clk 0:02:03]} 13. Nxe4 {[%clk 0:01:26]}  Bxh4 {[%clk 0:02:03]} 14. g5 {[%clk 0:01:12]}  d5 {[%clk 0:01:59]} 15. Nf6+ {[%clk 0:01:02]}  gxf6 {[%clk 0:01:56]} 16. gxh6 {[%clk 0:01:01]}  f5 {[%clk 0:01:52]} 17. Qg2+ {[%clk 0:00:58]} 1-0


[Site "https://www.chess.com"]

[Event "Titled Tuesday Blitz April 18 Early 2023"]
[White "Tworuszka, Michal"]
[Black "mrithyunjay"]
[WhiteFideId "1117858"]
[WhiteElo "2439"]
[BlackElo "2206"]
[Result "1/2-1/2"]
[Round "04"]
[TimeControl "180+2"]
[Date "2023.04.18"]
[WhiteClock "0:00:07"]
[BlackClock "0:01:18"]

1. d4 {[%clk 0:03:00]}  d5 {[%clk 0:02:57]} 2. c4 {[%clk 0:03:01]}  dxc4 {[%clk 0:02:56]} 3. Nf3 {[%clk 0:03:00]}  Nf6 {[%clk 0:02:54]} 4. e3 {[%clk 0:03:01]}  e6 {[%clk 0:02:52]} 5. Bxc4 {[%clk 0:03:00]}  a6 {[%clk 0:02:53]} 6. a4 {[%clk 0:02:59]}  c5 {[%clk 0:02:53]} 7. Nc3 {[%clk 0:02:59]}  Nc6 {[%clk 0:02:52]} 8. O-O {[%clk 0:02:59]}  cxd4 {[%clk 0:02:50]} 9. exd4 {[%clk 0:03:00]}  Be7 {[%clk 0:02:50]} 10. Bg5 {[%clk 0:02:57]}  O-O {[%clk 0:02:49]} 11. Qd3 {[%clk 0:02:40]}  h6 {[%clk 0:02:47]} 12. Bh4 {[%clk 0:02:39]}  Nb4 {[%clk 0:02:36]} 13. Qd2 {[%clk 0:02:37]}  Nbd5 {[%clk 0:02:35]} 14. Ne5 {[%clk 0:02:35]}  Nxc3 {[%clk 0:02:28]} 15. bxc3 {[%clk 0:01:51]}  Ne4 {[%clk 0:02:25]} 16. Bxe7 {[%clk 0:01:49]}  Nxd2 {[%clk 0:02:20]} 17. Bxd8 {[%clk 0:01:49]}  Nxc4 {[%clk 0:02:17]} 18. Be7 {[%clk 0:01:15]}  Re8 {[%clk 0:01:55]} 19. Nxc4 {[%clk 0:01:13]}  Rxe7 {[%clk 0:01:55]} 20. Nb6 {[%clk 0:01:07]}  Rb8 {[%clk 0:01:54]} 21. c4 {[%clk 0:00:43]}  Bd7 {[%clk 0:01:53]} 22. a5 {[%clk 0:00:43]}  Bc6 {[%clk 0:01:48]} 23. d5 {[%clk 0:00:42]}  exd5 {[%clk 0:01:47]} 24. cxd5 {[%clk 0:00:43]}  Bb5 {[%clk 0:01:47]} 25. Rfe1 {[%clk 0:00:43]}  Rxe1+ {[%clk 0:01:44]} 26. Rxe1 {[%clk 0:00:44]}  Kf8 {[%clk 0:01:44]} 27. d6 {[%clk 0:00:38]}  Rd8 {[%clk 0:01:41]} 28. Rd1 {[%clk 0:00:37]}  f6 {[%clk 0:01:40]} 29. d7 {[%clk 0:00:26]}  Ke7 {[%clk 0:01:40]} 30. Re1+ {[%clk 0:00:26]}  Kf7 {[%clk 0:01:40]} 31. Rd1 {[%clk 0:00:25]}  Ke7 {[%clk 0:01:39]} 32. Re1+ {[%clk 0:00:18]}  Kf7 {[%clk 0:01:31]} 33. Rd1 {[%clk 0:00:16]}  Ke6 {[%clk 0:01:28]} 34. Re1+ {[%clk 0:00:11]}  Kd6 {[%clk 0:01:19]} 35. Rd1+ {[%clk 0:00:07]}  Ke7 {[%clk 0:01:18]} 1/2-1/2


[Site "https://www.chess.com"]

[Event "Titled Tuesday Blitz April 18 Early 2023"]
[White "Ciuffoletti, Paolo"]
[Black "Topalov, Aleksandar"]
[WhiteFideId "807630"]
[BlackFideId "925659"]
[WhiteElo "2143"]
[BlackElo "2151"]
[Result "0-1"]
[Round "04"]
[TimeControl "180+2"]
[Date "2023.04.18"]
[WhiteClock "0:00:03"]
[BlackClock "0:00:09"]

1. e4 {[%clk 0:03:00]}  e6 {[%clk 0:02:54]} 2. d4 {[%clk 0:02:59]}  d5 {[%clk 0:02:53]} 3. e5 {[%clk 0:03:00]}  Ne7 {[%clk 0:02:53]} 4. Nf3 {[%clk 0:02:57]}  Qd7 {[%clk 0:02:53]} 5. Bd3 {[%clk 0:02:48]}  b6 {[%clk 0:02:53]} 6. Nbd2 {[%clk 0:02:40]}  Ba6 {[%clk 0:02:53]} 7. c4 {[%clk 0:02:40]}  dxc4 {[%clk 0:02:52]} 8. Nxc4 {[%clk 0:02:33]}  Bb7 {[%clk 0:02:52]} 9. O-O {[%clk 0:02:28]}  Nbc6 {[%clk 0:02:52]} 10. Be4 {[%clk 0:02:23]}  O-O-O {[%clk 0:02:51]} 11. a3 {[%clk 0:02:13]}  h6 {[%clk 0:02:43]} 12. Be3 {[%clk 0:02:10]}  Nd5 {[%clk 0:02:37]} 13. b4 {[%clk 0:01:59]}  Nce7 {[%clk 0:02:37]} 14. Rc1 {[%clk 0:01:53]}  Kb8 {[%clk 0:02:37]} 15. Qb3 {[%clk 0:01:35]}  g5 {[%clk 0:02:35]} 16. a4 {[%clk 0:01:30]}  Ng6 {[%clk 0:02:34]} 17. a5 {[%clk 0:01:17]}  Ngf4 {[%clk 0:02:27]} 18. axb6 {[%clk 0:00:59]}  axb6 {[%clk 0:02:26]} 19. Ra1 {[%clk 0:00:58]}  Be7 {[%clk 0:02:18]} 20. Qa2 {[%clk 0:00:56]}  Qb5 {[%clk 0:02:11]} 21. Rfc1 {[%clk 0:00:52]}  Kc8 {[%clk 0:01:33]} 22. Bxf4 {[%clk 0:00:41]}  gxf4 {[%clk 0:01:33]} 23. Qa7 {[%clk 0:00:35]}  Bc6 {[%clk 0:01:05]} 24. Nxb6+ {[%clk 0:00:28]}  Qxb6 {[%clk 0:00:57]} 25. Qxb6 {[%clk 0:00:27]}  cxb6 {[%clk 0:00:54]} 26. Rxc6+ {[%clk 0:00:27]}  Kb7 {[%clk 0:00:54]} 27. Bxd5 {[%clk 0:00:25]}  Rxd5 {[%clk 0:00:53]} 28. Rac1 {[%clk 0:00:25]}  Bc5 {[%clk 0:00:39]} 29. R6xc5 {[%clk 0:00:16]}  bxc5 {[%clk 0:00:39]} 30. bxc5 {[%clk 0:00:16]}  Ra8 {[%clk 0:00:38]} 31. Rb1+ {[%clk 0:00:16]}  Kc7 {[%clk 0:00:38]} 32. h3 {[%clk 0:00:12]}  Ra2 {[%clk 0:00:36]} 33. Rb6 {[%clk 0:00:11]}  Ra1+ {[%clk 0:00:33]} 34. Kh2 {[%clk 0:00:10]}  Rf1 {[%clk 0:00:31]} 35. Nd2 {[%clk 0:00:08]}  Rxf2 {[%clk 0:00:28]} 36. Ne4 {[%clk 0:00:08]}  Re2 {[%clk 0:00:26]} 37. Nd6 {[%clk 0:00:08]}  f3 {[%clk 0:00:22]} 38. Rb7+ {[%clk 0:00:06]}  Kc6 {[%clk 0:00:18]} 39. Rb6+ {[%clk 0:00:07]}  Kc7 {[%clk 0:00:19]} 40. Rb7+ {[%clk 0:00:07]}  Kd8 {[%clk 0:00:19]} 41. Nxf7+ {[%clk 0:00:06]}  Ke8 {[%clk 0:00:19]} 42. Nd6+ {[%clk 0:00:06]}  Kf8 {[%clk 0:00:20]} 43. Rf7+ {[%clk 0:00:06]}  Kg8 {[%clk 0:00:20]} 44. Rxf3 {[%clk 0:00:06]}  Rxd4 {[%clk 0:00:20]} 45. Rg3+ {[%clk 0:00:06]}  Kh7 {[%clk 0:00:19]} 46. Rc3 {[%clk 0:00:06]}  Rxe5 {[%clk 0:00:17]} 47. c6 {[%clk 0:00:06]}  Rxd6 {[%clk 0:00:13]} 48. c7 {[%clk 0:00:06]}  Rd2 {[%clk 0:00:13]} 49. c8=Q {[%clk 0:00:05]}  Rg5 {[%clk 0:00:13]} 50. Qc7+ {[%clk 0:00:05]}  Rg7 {[%clk 0:00:13]} 51. Qc6 {[%clk 0:00:04]}  e5 {[%clk 0:00:13]} 52. Rg3 {[%clk 0:00:04]}  Rxg3 {[%clk 0:00:10]} 53. Kxg3 {[%clk 0:00:04]}  Rd3+ {[%clk 0:00:10]} 54. Kf2 {[%clk 0:00:04]}  Rd2+ {[%clk 0:00:10]} 55. Kf3 {[%clk 0:00:03]}  Rd3+ {[%clk 0:00:08]} 56. Ke4 {[%clk 0:00:04]}  Rg3 {[%clk 0:00:08]} 57. Kxe5 {[%clk 0:00:03]}  Rg5+ {[%clk 0:00:09]} 58. Kf6 {[%clk 0:00:03]}  Rg6+ {[%clk 0:00:09]} 0-1


[Site "https://www.chess.com"]

[Event "Titled Tuesday Blitz April 18 Early 2023"]
[White "Jimenez Jimenez, Leandro"]
[Black "Sailer, Mike"]
[WhiteFideId "6415253"]
[BlackFideId "2012901"]
[WhiteElo "2263"]
[BlackElo "2109"]
[Result "1-0"]
[Round "04"]
[TimeControl "180+2"]
[Date "2023.04.18"]
[WhiteClock "0:00:41"]
[BlackClock "0:00:09"]

1. d4 {[%clk 0:03:00]}  d5 {[%clk 0:02:59]} 2. c4 {[%clk 0:02:58]}  Bf5 {[%clk 0:03:00]} 3. cxd5 {[%clk 0:02:57]}  Bxb1 {[%clk 0:02:55]} 4. Rxb1 {[%clk 0:02:56]}  Qxd5 {[%clk 0:02:53]} 5. Bf4 {[%clk 0:02:38]}  Nc6 {[%clk 0:02:51]} 6. Nf3 {[%clk 0:02:36]}  O-O-O {[%clk 0:02:47]} 7. e3 {[%clk 0:02:25]}  e5 {[%clk 0:02:47]} 8. Nxe5 {[%clk 0:01:58]}  Bb4+ {[%clk 0:02:20]} 9. Ke2 {[%clk 0:01:55]}  Nge7 {[%clk 0:01:25]} 10. Qb3 {[%clk 0:01:49]}  Qb5+ {[%clk 0:00:52]} 11. Qd3 {[%clk 0:01:46]}  Qd5 {[%clk 0:00:45]} 12. a3 {[%clk 0:01:40]}  Bd6 {[%clk 0:00:39]} 13. Nxc6 {[%clk 0:01:36]}  Nxc6 {[%clk 0:00:39]} 14. Bxd6 {[%clk 0:01:33]}  Rxd6 {[%clk 0:00:39]} 15. f3 {[%clk 0:01:25]}  Ne5 {[%clk 0:00:31]} 16. Qf5+ {[%clk 0:01:17]}  Nd7 {[%clk 0:00:29]} 17. Qxd5 {[%clk 0:01:16]}  Rxd5 {[%clk 0:00:30]} 18. Kf2 {[%clk 0:01:15]}  c5 {[%clk 0:00:27]} 19. Bc4 {[%clk 0:01:15]}  Rd6 {[%clk 0:00:27]} 20. Rhd1 {[%clk 0:01:00]}  cxd4 {[%clk 0:00:18]} 21. Rxd4 {[%clk 0:01:01]}  Rxd4 {[%clk 0:00:18]} 22. exd4 {[%clk 0:01:02]}  f6 {[%clk 0:00:18]} 23. Re1 {[%clk 0:01:01]}  Kd8 {[%clk 0:00:18]} 24. Bd5 {[%clk 0:00:59]}  b6 {[%clk 0:00:14]} 25. Re6 {[%clk 0:00:51]}  Rf8 {[%clk 0:00:13]} 26. Ke3 {[%clk 0:00:50]}  f5 {[%clk 0:00:13]} 27. Kf4 {[%clk 0:00:46]}  g6 {[%clk 0:00:12]} 28. Kg5 {[%clk 0:00:44]}  b5 {[%clk 0:00:08]} 29. Bc6 {[%clk 0:00:42]}  Nb6 {[%clk 0:00:08]} 30. Bxb5 {[%clk 0:00:41]}  Nd5 {[%clk 0:00:09]} 31. Rd6+ {[%clk 0:00:41]} 1-0


[Site "https://www.chess.com"]

[Event "Titled Tuesday Blitz April 18 Early 2023"]
[White "Fernandez Siles, Luis"]
[Black "Faci, Fadil"]
[WhiteFideId "2209420"]
[BlackFideId "4645162"]
[WhiteElo "2195"]
[BlackElo "2149"]
[Result "1-0"]
[Round "04"]
[TimeControl "180+2"]
[Date "2023.04.18"]
[WhiteClock "0:00:39"]
[BlackClock "0:00:21"]

1. d4 {[%clk 0:03:00]}  Nf6 {[%clk 0:02:57]} 2. c4 {[%clk 0:03:00]}  g6 {[%clk 0:02:48]} 3. Nc3 {[%clk 0:03:00]}  d5 {[%clk 0:02:46]} 4. cxd5 {[%clk 0:02:59]}  Nxd5 {[%clk 0:02:45]} 5. Bd2 {[%clk 0:02:59]}  Bg7 {[%clk 0:02:40]} 6. e4 {[%clk 0:02:59]}  Nxc3 {[%clk 0:02:40]} 7. Bxc3 {[%clk 0:03:00]}  c5 {[%clk 0:02:39]} 8. d5 {[%clk 0:03:00]}  Bxc3+ {[%clk 0:02:39]} 9. bxc3 {[%clk 0:03:01]}  Qa5 {[%clk 0:02:37]} 10. Qd2 {[%clk 0:03:01]}  O-O {[%clk 0:02:33]} 11. h4 {[%clk 0:03:00]}  h5 {[%clk 0:02:21]} 12. Nf3 {[%clk 0:02:57]}  e6 {[%clk 0:02:19]} 13. c4 {[%clk 0:02:37]}  Qxd2+ {[%clk 0:02:18]} 14. Kxd2 {[%clk 0:02:38]}  exd5 {[%clk 0:02:18]} 15. exd5 {[%clk 0:02:37]}  Bg4 {[%clk 0:02:17]} 16. Ne5 {[%clk 0:02:32]}  Bf5 {[%clk 0:02:14]} 17. Bd3 {[%clk 0:02:22]}  Bxd3 {[%clk 0:02:13]} 18. Kxd3 {[%clk 0:02:21]}  b6 {[%clk 0:02:12]} 19. f4 {[%clk 0:02:17]}  Kg7 {[%clk 0:02:11]} 20. Rhf1 {[%clk 0:02:07]}  f6 {[%clk 0:02:10]} 21. Nf3 {[%clk 0:02:02]}  Nd7 {[%clk 0:02:11]} 22. a4 {[%clk 0:01:56]}  a5 {[%clk 0:02:07]} 23. Rab1 {[%clk 0:01:55]}  Rfe8 {[%clk 0:02:07]} 24. Nd2 {[%clk 0:01:46]}  f5 {[%clk 0:02:00]} 25. Rfe1 {[%clk 0:01:36]}  Kf7 {[%clk 0:01:58]} 26. Nf3 {[%clk 0:01:36]}  Kf6 {[%clk 0:01:07]} 27. Ng5 {[%clk 0:01:27]}  Rab8 {[%clk 0:01:02]} 28. Ne6 {[%clk 0:01:04]}  Re7 {[%clk 0:00:48]} 29. Nc7 {[%clk 0:01:00]}  Rb7 {[%clk 0:00:31]} 30. d6 {[%clk 0:00:54]}  Rxe1 {[%clk 0:00:21]} 31. Rxe1 {[%clk 0:00:55]}  Nf8 {[%clk 0:00:21]} 32. Re8 {[%clk 0:00:49]}  Kf7 {[%clk 0:00:21]} 33. Re7+ {[%clk 0:00:44]}  Kf6 {[%clk 0:00:21]} 34. Nd5# {[%clk 0:00:39]} 1-0


[Site "https://www.chess.com"]

[Event "Titled Tuesday Blitz April 18 Early 2023"]
[White "Tarnowska, Aleksandra"]
[Black "Zacurdajev, Dmitry"]
[WhiteFideId "1180967"]
[BlackFideId "4196309"]
[WhiteElo "1776"]
[BlackElo "2189"]
[Result "0-1"]
[Round "04"]
[TimeControl "180+2"]
[Date "2023.04.18"]
[WhiteClock "0:00:02"]
[BlackClock "0:00:05"]

1. e4 {[%clk 0:02:53]}  c6 {[%clk 0:02:59]} 2. d4 {[%clk 0:02:52]}  d5 {[%clk 0:03:00]} 3. Nc3 {[%clk 0:02:51]}  dxe4 {[%clk 0:03:00]} 4. Nxe4 {[%clk 0:02:52]}  Nf6 {[%clk 0:03:01]} 5. Nxf6+ {[%clk 0:02:52]}  exf6 {[%clk 0:03:02]} 6. Nf3 {[%clk 0:02:51]}  Bd6 {[%clk 0:03:02]} 7. Be3 {[%clk 0:02:50]}  O-O {[%clk 0:03:02]} 8. Qd2 {[%clk 0:02:50]}  Nd7 {[%clk 0:02:59]} 9. O-O-O {[%clk 0:02:51]}  b5 {[%clk 0:02:59]} 10. h4 {[%clk 0:02:46]}  Nb6 {[%clk 0:03:00]} 11. h5 {[%clk 0:02:46]}  Nc4 {[%clk 0:02:58]} 12. Bxc4 {[%clk 0:02:37]}  bxc4 {[%clk 0:02:59]} 13. h6 {[%clk 0:02:11]}  g6 {[%clk 0:02:59]} 14. Qc3 {[%clk 0:01:55]}  Be6 {[%clk 0:02:53]} 15. Nd2 {[%clk 0:00:52]}  Rb8 {[%clk 0:02:19]} 16. Nxc4 {[%clk 0:00:40]}  Bb4 {[%clk 0:01:59]} 17. Qd3 {[%clk 0:00:40]}  Bf5 {[%clk 0:02:00]} 18. Qe2 {[%clk 0:00:40]}  Qd5 {[%clk 0:01:58]} 19. Bd2 {[%clk 0:00:16]}  Rfe8 {[%clk 0:01:52]} 20. Qf1 {[%clk 0:00:12]}  a5 {[%clk 0:00:29]} 21. a3 {[%clk 0:00:12]}  Bxd2+ {[%clk 0:00:19]} 22. Rxd2 {[%clk 0:00:13]}  Be6 {[%clk 0:00:17]} 23. b3 {[%clk 0:00:05]}  a4 {[%clk 0:00:18]} 24. Rd3 {[%clk 0:00:05]}  axb3 {[%clk 0:00:18]} 25. cxb3 {[%clk 0:00:06]}  Bf5 {[%clk 0:00:09]} 26. Rc3 {[%clk 0:00:07]}  Qxd4 {[%clk 0:00:09]} 27. Kb2 {[%clk 0:00:05]}  Rxb3+ {[%clk 0:00:06]} 28. Kxb3 {[%clk 0:00:05]}  Rb8+ {[%clk 0:00:07]} 29. Ka2 {[%clk 0:00:04]}  Qxc3 {[%clk 0:00:08]} 30. Qc1 {[%clk 0:00:03]}  Bc2 {[%clk 0:00:06]} 31. Nb2 {[%clk 0:00:02]}  Qb3+ {[%clk 0:00:04]} 32. Ka1 {[%clk 0:00:02]}  Qxa3# {[%clk 0:00:05]} 0-1


[Site "https://www.chess.com"]

[Event "Titled Tuesday Blitz April 18 Early 2023"]
[White "Necula, Iulian"]
[Black "Girsh, Daniel"]
[WhiteFideId "1232380"]
[BlackFideId "30949190"]
[WhiteElo "1790"]
[BlackElo "2075"]
[Result "0-1"]
[Round "04"]
[TimeControl "180+2"]
[Date "2023.04.18"]
[WhiteClock "0:00:37"]
[BlackClock "0:00:45"]

1. d4 {[%clk 0:03:00]}  Nf6 {[%clk 0:02:58]} 2. Nc3 {[%clk 0:03:01]}  d5 {[%clk 0:02:57]} 3. Bf4 {[%clk 0:03:00]}  e6 {[%clk 0:02:57]} 4. Nb5 {[%clk 0:03:00]}  Na6 {[%clk 0:02:56]} 5. e3 {[%clk 0:02:59]}  Be7 {[%clk 0:02:56]} 6. Nf3 {[%clk 0:02:58]}  O-O {[%clk 0:02:57]} 7. Be2 {[%clk 0:02:55]}  Nh5 {[%clk 0:02:56]} 8. Be5 {[%clk 0:02:53]}  f6 {[%clk 0:02:55]} 9. Bg3 {[%clk 0:02:52]}  c6 {[%clk 0:02:53]} 10. Nc3 {[%clk 0:02:51]}  c5 {[%clk 0:02:53]} 11. a3 {[%clk 0:02:44]}  Bd7 {[%clk 0:02:50]} 12. Qd2 {[%clk 0:02:42]}  Rc8 {[%clk 0:02:46]} 13. Nh4 {[%clk 0:02:39]}  Nxg3 {[%clk 0:02:45]} 14. hxg3 {[%clk 0:02:40]}  Qa5 {[%clk 0:02:32]} 15. Rd1 {[%clk 0:02:31]}  cxd4 {[%clk 0:02:01]} 16. exd4 {[%clk 0:02:31]}  b5 {[%clk 0:02:00]} 17. Bd3 {[%clk 0:02:27]}  f5 {[%clk 0:01:55]} 18. Nf3 {[%clk 0:02:26]}  b4 {[%clk 0:01:54]} 19. axb4 {[%clk 0:02:25]}  Nxb4 {[%clk 0:01:55]} 20. Ne5 {[%clk 0:02:24]}  Nxd3+ {[%clk 0:01:55]} 21. Qxd3 {[%clk 0:02:05]}  Be8 {[%clk 0:01:54]} 22. O-O {[%clk 0:01:56]}  Qb4 {[%clk 0:01:42]} 23. Rb1 {[%clk 0:01:51]}  f4 {[%clk 0:01:35]} 24. gxf4 {[%clk 0:01:45]}  Rxf4 {[%clk 0:01:34]} 25. Rfd1 {[%clk 0:01:41]}  Bh5 {[%clk 0:01:30]} 26. Rd2 {[%clk 0:01:39]}  Bd6 {[%clk 0:01:19]} 27. g3 {[%clk 0:01:39]}  Bxe5 {[%clk 0:01:08]} 28. gxf4 {[%clk 0:01:37]}  Bxf4 {[%clk 0:01:08]} 29. Qa6 {[%clk 0:01:20]}  Re8 {[%clk 0:00:57]} 30. Rd3 {[%clk 0:01:14]}  Qe7 {[%clk 0:00:50]} 31. Re1 {[%clk 0:01:09]}  Qg5+ {[%clk 0:00:50]} 32. Kf1 {[%clk 0:00:58]}  Qh4 {[%clk 0:00:49]} 33. Rg3 {[%clk 0:00:42]}  Bxg3 {[%clk 0:00:47]} 34. fxg3 {[%clk 0:00:42]}  Qxg3 {[%clk 0:00:46]} 35. Qd3 {[%clk 0:00:37]}  Rf8+ {[%clk 0:00:45]} 0-1


[Site "https://www.chess.com"]

[Event "Titled Tuesday Blitz April 18 Early 2023"]
[White "Sanchez, Robert"]
[Black "Harriott, Tyrell"]
[WhiteFideId "2034360"]
[BlackFideId "2086484"]
[WhiteElo "1972"]
[BlackElo "2107"]
[Result "0-1"]
[Round "04"]
[TimeControl "180+2"]
[Date "2023.04.18"]
[WhiteClock "0:02:06"]
[BlackClock "0:01:53"]

1. e4 {[%clk 0:03:00]}  e6 {[%clk 0:02:59]} 2. d4 {[%clk 0:03:00]}  d5 {[%clk 0:03:00]} 3. Nd2 {[%clk 0:03:01]}  f5 {[%clk 0:03:00]} 4. exd5 {[%clk 0:02:54]}  exd5 {[%clk 0:03:00]} 5. Ngf3 {[%clk 0:02:54]}  Nf6 {[%clk 0:02:59]} 6. Bd3 {[%clk 0:02:54]}  Bd6 {[%clk 0:03:00]} 7. O-O {[%clk 0:02:55]}  O-O {[%clk 0:03:00]} 8. Ne5 {[%clk 0:02:55]}  Nc6 {[%clk 0:02:59]} 9. Nxc6 {[%clk 0:02:55]}  bxc6 {[%clk 0:03:00]} 10. Nf3 {[%clk 0:02:53]}  Ne4 {[%clk 0:03:00]} 11. c3 {[%clk 0:02:53]}  f4 {[%clk 0:02:55]} 12. c4 {[%clk 0:02:41]}  Bg4 {[%clk 0:02:52]} 13. c5 {[%clk 0:02:40]}  Be7 {[%clk 0:02:51]} 14. Bxe4 {[%clk 0:02:39]}  dxe4 {[%clk 0:02:51]} 15. Qb3+ {[%clk 0:02:39]}  Qd5 {[%clk 0:02:40]} 16. Ne5 {[%clk 0:02:40]}  Be6 {[%clk 0:02:31]} 17. Qa4 {[%clk 0:02:32]}  Bxc5 {[%clk 0:02:23]} 18. dxc5 {[%clk 0:02:25]}  Qxe5 {[%clk 0:02:23]} 19. Qxc6 {[%clk 0:02:26]}  Bd5 {[%clk 0:02:21]} 20. Qd7 {[%clk 0:02:26]}  e3 {[%clk 0:02:10]} 21. Qh3 {[%clk 0:02:06]}  Bc4 {[%clk 0:01:53]} 0-1


[Site "https://www.chess.com"]

[Event "Titled Tuesday Blitz April 18 Early 2023"]
[White "Pourkashiyan, Atousa"]
[Black "Mouhamad, Joachim"]
[WhiteFideId "12502014"]
[BlackFideId "656410"]
[WhiteElo "2228"]
[BlackElo "2125"]
[Result "0-1"]
[Round "04"]
[TimeControl "180+2"]
[Date "2023.04.18"]
[WhiteClock "0:00:07"]
[BlackClock "0:00:14"]

1. e4 {[%clk 0:03:00]}  c5 {[%clk 0:02:58]} 2. Nf3 {[%clk 0:02:51]}  Nc6 {[%clk 0:02:58]} 3. d4 {[%clk 0:02:48]}  cxd4 {[%clk 0:02:57]} 4. Nxd4 {[%clk 0:02:49]}  Nf6 {[%clk 0:02:58]} 5. Nc3 {[%clk 0:02:50]}  d6 {[%clk 0:02:58]} 6. Bc4 {[%clk 0:02:48]}  Qb6 {[%clk 0:02:57]} 7. Be3 {[%clk 0:02:44]}  Qxb2 {[%clk 0:02:56]} 8. Ndb5 {[%clk 0:02:40]}  Qb4 {[%clk 0:02:35]} 9. Qe2 {[%clk 0:02:35]}  Qa5 {[%clk 0:02:27]} 10. O-O {[%clk 0:02:30]}  g6 {[%clk 0:02:10]} 11. Bd2 {[%clk 0:02:01]}  Qd8 {[%clk 0:02:06]} 12. f4 {[%clk 0:01:49]}  a6 {[%clk 0:01:47]} 13. Nxd6+ {[%clk 0:01:18]}  exd6 {[%clk 0:01:37]} 14. e5 {[%clk 0:01:17]}  Bg4 {[%clk 0:01:19]} 15. Qe1 {[%clk 0:01:11]}  dxe5 {[%clk 0:00:48]} 16. fxe5 {[%clk 0:01:12]}  Qd4+ {[%clk 0:00:48]} 17. Kh1 {[%clk 0:01:08]}  Qxc4 {[%clk 0:00:48]} 18. exf6+ {[%clk 0:01:09]}  Be6 {[%clk 0:00:47]} 19. Rb1 {[%clk 0:01:03]}  b5 {[%clk 0:00:43]} 20. Rf4 {[%clk 0:00:52]}  Qc5 {[%clk 0:00:34]} 21. Re4 {[%clk 0:00:46]}  O-O-O {[%clk 0:00:25]} 22. a4 {[%clk 0:00:23]}  b4 {[%clk 0:00:25]} 23. Qe2 {[%clk 0:00:18]}  Kb7 {[%clk 0:00:23]} 24. a5 {[%clk 0:00:08]}  Bd6 {[%clk 0:00:14]} 25. Na4 {[%clk 0:00:07]}  Qb5 {[%clk 0:00:14]} 0-1


[Site "https://www.chess.com"]